bitfinex-derivatives/quotes_BTCF0:USTF0_20250928
["timestamp","ask_amount","ask_price","bid_price","bid_amount"]
[1759096194315,0.06552286,110790.0,110780.0,0.83220515]
[1759096196218,0.06852286,110790.0,110780.0,0.83220515]
[1759096196518,0.06852286,110790.0,110780.0,0.49612313]
[1759096198820,0.06852286,110790.0,110780.0,1.31136313]
[1759096200224,0.06852286,110790.0,110780.0,0.49612313]
[1759096200422,0.06852286,110790.0,110780.0,1.31136313]
[1759096201624,0.06852286,110790.0,110780.0,0.95056313]
[1759096201826,0.06852286,110790.0,110780.0,1.31136313]
[1759096202320,0.06852286,110790.0,110780.0,0.4868962]
[1759096202522,1.230915,110790.0,110780.0,0.1038362]
[1759096202726,1.591715,110790.0,110780.0,0.1038362]
[1759096202916,1.230915,110790.0,110780.0,0.1038362]
[1759096203225,1.230915,110790.0,110780.0,0.1263862]
[1759096203427,0.89483298,110790.0,110780.0,0.1263862]
[1759096206327,1.25563298,110790.0,110780.0,0.1263862]
[1759096206628,2.07087298,110790.0,110780.0,0.1263862]
[1759096207029,1.71007298,110790.0,110780.0,0.1263862]
[1759096216639,0.89483298,110790.0,110780.0,0.1263862]
[1759096216840,1.71007298,110790.0,110780.0,0.1263862]
[1759096217041,2.07087298,110790.0,110780.0,0.1263862]
[1759096218738,1.71007298,110790.0,110780.0,0.1263862]
[1759096226546,2.07087298,110790.0,110780.0,0.1263862]
[1759096226745,1.71007298,110790.0,110780.0,0.1263862]
[1759096239456,1.31007298,110790.0,110780.0,0.1263862]
[1759096247148,1.21976488,110790.0,110780.0,0.1263862]
[1759096248155,1.30999298,110790.0,110780.0,0.1263862]
[1759096256267,1.31004668,110790.0,110780.0,0.1263862]
[1759096261165,1.21981858,110790.0,110780.0,0.1263862]
[1759096264882,1.19636581,110790.0,110780.0,0.1263862]
[1759096265681,1.21985303,110790.0,110780.0,0.1263862]
[1759096265881,1.19636581,110790.0,110780.0,0.1263862]
[1759096266582,1.21985304,110790.0,110780.0,0.1263862]
[1759096267281,1.19636581,110790.0,110780.0,0.1263862]
[1759096269675,0.38120581,110790.0,110780.0,0.4871862]
[1759096269880,1.19632581,110790.0,110780.0,0.4871862]
[1759096272285,1.21981298,110790.0,110780.0,0.4871862]
[1759096275286,0.40469298,110790.0,110780.0,0.4871862]
[1759096275484,1.21977298,110790.0,110780.0,0.4871862]
[1759096276281,0.06855726,110790.0,110780.0,0.4871862]
[1759096276586,1.21977298,110790.0,110780.0,0.4871862]
[1759096280287,0.40469298,110790.0,110780.0,0.4871862]
[1759096280489,1.21977298,110790.0,110780.0,0.4871862]
[1759096281103,0.40469298,110790.0,110780.0,0.4871862]
[1759096281390,1.21977298,110790.0,110780.0,0.4871862]
[1759096282190,0.40469298,110790.0,110780.0,0.4871862]
[1759096282489,1.21977298,110790.0,110780.0,0.4871862]
[1759096295697,1.21956256,110790.0,110780.0,0.4871862]
[1759096302810,1.29013274,110790.0,110780.0,0.4871862]
[1759096304110,0.95399702,110790.0,110780.0,0.4871862]
[1759096304309,1.29013274,110790.0,110780.0,0.4871862]
[1759096307411,1.29013274,110790.0,110780.0,0.1263862]
[1759096307609,1.29013274,110790.0,110780.0,0.4871862]
[1759096312417,0.95399702,110790.0,110780.0,0.4871862]
[1759096312608,1.29013274,110790.0,110780.0,0.4871862]
[1759096316818,0.93313735,110790.0,110780.0,0.4871862]
[1759096317012,1.26927307,110790.0,110780.0,0.4871862]
[1759096318319,1.26924249,110790.0,110780.0,0.4871862]
[1759096322721,0.93313735,110790.0,110780.0,0.4871862]
[1759096322920,1.26924249,110790.0,110780.0,0.4871862]
[1759096327924,1.26992249,110790.0,110780.0,0.4871862]
[1759096330324,0.93381735,110790.0,110780.0,0.4871862]
[1759096330530,1.26992249,110790.0,110780.0,0.4871862]
[1759096332233,1.26991008,110790.0,110780.0,0.4871862]
[1759096333234,0.45415008,110790.0,110780.0,0.4871862]
[1759096333441,1.26987008,110790.0,110780.0,0.4871862]
[1759096380272,1.26987295,110790.0,110780.0,0.4871862]
[1759096383971,0.45415295,110790.0,110780.0,0.4871862]
[1759096384177,1.26923295,110790.0,110780.0,0.4871862]
[1759096387377,1.26923295,110790.0,110780.0,0.1263862]
[1759096387578,1.26923295,110790.0,110780.0,0.4871862]
[1759096389683,0.45415295,110790.0,110780.0,0.4871862]
[1759096389882,1.26923295,110790.0,110780.0,0.4871862]
[1759096394386,1.24575819,110790.0,110780.0,0.4871862]
[1759096394682,1.26936853,110790.0,110780.0,0.4871862]
[1759096396081,0.38371835,110790.0,110780.0,0.82329421]
[1759096396383,1.19883835,110790.0,110780.0,0.82329421]
[1759096397883,1.19883835,110790.0,110780.0,0.46249421]
[1759096402391,1.19883605,110790.0,110780.0,0.46249421]
[1759096404292,0.86272804,110790.0,110780.0,0.46249421]
[1759096404490,1.19883605,110790.0,110780.0,0.46249421]
[1759096408494,0.86272804,110790.0,110780.0,0.46249421]
[1759096408688,1.19883605,110790.0,110780.0,0.46249421]
[1759096410588,1.19883605,110790.0,110780.0,0.1263862]
[1759096410789,1.19883605,110790.0,110780.0,0.46249421]
[1759096414708,1.28906395,110790.0,110780.0,0.46249421]
[1759096416198,1.28906395,110790.0,110780.0,0.1263862]
[1759096420199,1.28906395,110790.0,110780.0,0.46249421]
[1759096428305,1.28906395,110790.0,110780.0,0.1263862]
[1759096428712,1.28906395,110790.0,110780.0,0.46249421]
[1759096442014,1.28906395,110790.0,110780.0,0.03615]
[1759096442217,1.28905582,110790.0,110780.0,0.03615]
[1759096448428,0.95295594,110790.0,110780.0,0.03615]
[1759096448628,1.28905582,110790.0,110780.0,0.03615]
[1759096451429,1.28405582,110790.0,110780.0,0.03615]
[1759096451918,1.27605582,110790.0,110780.0,0.03615]
[1759096452117,1.28605582,110790.0,110780.0,0.03615]
[1759096452627,1.28599156,110790.0,110780.0,0.03615]
[1759096453333,1.28899156,110790.0,110780.0,0.03615]
[1759096463638,0.95289168,110790.0,110780.0,0.03615]
[1759096469343,0.13777168,110790.0,110780.0,0.1263861]
[1759096469742,0.13277168,110790.0,110780.0,0.1263861]
[1759096470232,0.46887156,110790.0,110780.0,0.1263861]
[1759096470432,0.47187156,110790.0,110780.0,0.46248598]
[1759096470949,0.47188705,110790.0,110780.0,0.46248598]
[1759096471247,0.46388705,110790.0,110780.0,0.46248598]
[1759096471448,0.47388705,110790.0,110780.0,0.46248598]
[1759096473350,0.47388705,110790.0,110780.0,0.1263861]
[1759096474753,0.47388705,110790.0,110780.0,0.4871861]
[1759096480759,0.46788705,110790.0,110780.0,0.4871861]
[1759096480957,0.45788705,110790.0,110780.0,0.4871861]
[1759096481259,0.46588705,110790.0,110780.0,0.4871861]
[1759096482555,0.45788705,110790.0,110780.0,0.4871861]
[1759096482857,0.46888705,110790.0,110780.0,0.4871861]
[1759096491965,0.46888705,110790.0,110780.0,0.1263861]
[1759096492154,0.46888705,110790.0,110780.0,0.4871861]
[1759096502275,0.46887616,110790.0,110780.0,0.82327509]
[1759096514780,0.46887616,110790.0,110780.0,1.63819509]
[1759096523791,0.46887616,110790.0,110780.0,1.3021061]
[1759096523993,0.46887616,110790.0,110780.0,1.63819509]
[1759096527595,0.37864826,110790.0,110780.0,1.63819509]
[1759096528899,0.37864826,110790.0,110780.0,1.3021061]
[1759096530310,0.37864826,110790.0,110780.0,1.63819509]
[1759096531410,0.37864826,110790.0,110780.0,1.3021061]
[1759096531597,0.37864826,110790.0,110780.0,1.63819509]
[1759096547415,0.37864826,110790.0,110780.0,1.27739509]
[1759096547714,0.37864826,110790.0,110780.0,1.63819509]
[1759096552917,0.04255927,110790.0,110780.0,1.63819509]
[1759096553105,0.37864826,110790.0,110780.0,1.63819509]
[1759096553615,0.04255927,110790.0,110780.0,1.63819509]
[1759096553818,0.37864826,110790.0,110780.0,1.63819509]
[1759096554216,0.04255927,110790.0,110780.0,1.63819509]
[1759096554423,0.37864826,110790.0,110780.0,1.63819509]
[1759096564320,0.04255927,110790.0,110780.0,1.6381722]
[1759096579529,0.04255927,110790.0,110780.0,1.2773722]
[1759096579731,0.04255927,110790.0,110780.0,1.6381722]
[1759096580233,0.04255927,110790.0,110780.0,1.3021061]
[1759096580531,0.04255927,110790.0,110780.0,1.6381722]
[1759096584036,0.0425731,110790.0,110780.0,1.6381722]
[1759096585531,0.0075731,110790.0,110780.0,1.6381722]
[1759096586838,0.0135731,110790.0,110780.0,1.6381722]
[1759096587538,0.0215731,110790.0,110780.0,1.6381722]
[1759096588340,1.5114773,110820.0,110810.0,0.03552]
[1759096588833,0.8083973,110820.0,110810.0,0.03552]
[1759096589038,0.4475973,110820.0,110810.0,0.1257317]
[1759096590140,0.4595973,110820.0,110810.0,0.1257317]
[1759096591628,0.3693861,110820.0,110810.0,0.1257317]
[1759096592440,0.7693861,110820.0,110810.0,0.1257317]
[1759096593743,0.7643861,110820.0,110810.0,0.1257317]
[1759096593942,0.7703861,110820.0,110810.0,0.1257317]
[1759096594742,0.7733861,110820.0,110810.0,0.1257317]
[1759096596137,0.7723861,110820.0,110810.0,0.1257317]
[1759096596339,0.7733861,110820.0,110810.0,0.1257317]
[1759096599448,0.3733861,110820.0,110810.0,0.1257317]
[1759096600249,0.39679117,110820.0,110810.0,0.1257317]
[1759096606548,0.40989117,110820.0,110810.0,0.1257317]
[1759096609756,0.07382507,110820.0,110810.0,0.1257317]
[1759096609957,0.40989117,110820.0,110810.0,0.1257317]
[1759096612560,0.40989117,110820.0,110810.0,0.4865317]
[1759096620558,0.07382507,110820.0,110810.0,0.4865317]
[1759096624251,0.40975779,110820.0,110810.0,0.4865317]
[1759096626563,0.74569051,110820.0,110810.0,0.4865317]
[1759096635968,0.74569051,110820.0,110810.0,0.1257317]
[1759096636169,0.74569051,110820.0,110810.0,0.82246442]
[1759096637476,0.40975779,110820.0,110810.0,0.4865317]
[1759096643984,0.40975779,110820.0,110810.0,0.1257317]
[1759096644283,0.40975779,110820.0,110810.0,0.4865317]
[1759096651982,0.40975779,110820.0,110810.0,0.1257317]
[1759096652185,0.40975779,110820.0,110810.0,0.4865317]
[1759096668007,0.38635272,110820.0,110810.0,0.1257317]
[1759096668206,0.40985862,110820.0,110810.0,0.4865317]
[1759096668510,0.74579134,110820.0,110810.0,0.4865317]
[1759096677127,0.0739259,110820.0,110810.0,0.4865317]
[1759096677309,0.74579134,110820.0,110810.0,0.4865317]
[1759096678320,0.74279134,110820.0,110810.0,0.4865317]
[1759096679020,0.73579134,110820.0,110810.0,0.4865317]
[1759096679218,0.74579134,110820.0,110810.0,0.4865317]
[1759096686222,0.40986571,110820.0,110810.0,0.4865317]
[1759096689327,0.40986571,110820.0,110810.0,0.1257317]
[1759096689518,0.40986571,110820.0,110810.0,0.4865317]
[1759096691327,0.40986571,110820.0,110810.0,0.1257317]
[1759096691523,0.40986571,110820.0,110810.0,0.4865317]
[1759096691722,0.39676571,110820.0,110810.0,0.4865317]
[1759096692724,0.39676571,110820.0,110810.0,0.1257317]
[1759096692930,0.39676571,110820.0,110810.0,0.4865317]
[1759096696331,0.39676571,110820.0,110810.0,0.1257317]
[1759096696630,0.39676571,110820.0,110810.0,0.4865317]
[1759096704931,0.0608259,110820.0,110810.0,0.4865317]
[1759096705135,0.39676571,110820.0,110810.0,0.4865317]
[1759096712642,0.48696511,110820.0,110810.0,0.4865317]
[1759096713647,0.39676571,110820.0,110810.0,0.4865317]
[1759096714037,0.39676571,110820.0,110810.0,0.1257317]
[1759096714335,0.39676571,110820.0,110810.0,0.4865317]
[1759096718947,0.39676571,110820.0,110810.0,0.1257317]
[1759096719150,0.39676571,110820.0,110810.0,0.4865317]
[1759096723350,0.39676571,110820.0,110810.0,0.1257317]
[1759096723549,0.39676571,110820.0,110810.0,0.4865317]
[1759096725352,0.41051571,110820.0,110810.0,0.4865317]
[1759096728542,0.41051571,110820.0,110810.0,0.1257317]
[1759096728847,0.41051571,110820.0,110810.0,0.4865317]
[1759096730052,0.41051571,110820.0,110810.0,0.1257317]
[1759096730254,0.41051571,110820.0,110810.0,0.4865317]
[1759096732959,0.41051571,110820.0,110810.0,0.1257317]
[1759096733159,0.41051571,110820.0,110810.0,0.4865317]
[1759096734954,0.39676571,110820.0,110810.0,0.4865317]
[1759096736266,0.0395059,110820.0,110810.0,1.22247151]
[1759096737561,0.0335059,110820.0,110810.0,1.22247151]
[1759096738565,0.0365059,110820.0,110810.0,1.22247151]
[1759096742764,0.013,110820.0,110810.0,1.22247151]
[1759096748268,0.013,110820.0,110810.0,1.22235513]
[1759096750867,0.006,110820.0,110810.0,1.22235513]
[1759096751069,0.006,110820.0,110810.0,1.22435513]
[1759096751869,0.01,110820.0,110810.0,1.22235513]
[1759096752670,0.005,110820.0,110810.0,1.22235513]
[1759096752970,0.005,110820.0,110810.0,0.8865317]
[1759096753271,0.008,110820.0,110810.0,1.22235513]
[1759096764183,0.03136578,110820.0,110810.0,1.22235513]
[1759096765568,0.03136578,110820.0,110810.0,1.55817856]
[1759096766273,0.03137528,110820.0,110810.0,1.55817856]
[1759096766478,0.008,110820.0,110810.0,1.55817856]
[1759096769481,0.03138068,110820.0,110810.0,1.55817856]
[1759096771885,0.33582343,110840.0,110830.0,0.1260338]
[1759096772077,0.33582343,110840.0,110830.0,1.27797723]
[1759096773382,0.34382343,110840.0,110830.0,1.27797723]
[1759096773773,0.35182343,110840.0,110830.0,1.27797723]
[1759096774585,0.35182343,110840.0,110830.0,1.28682585]
[1759096776177,0.016,110840.0,110830.0,1.28682585]
[1759096776890,0.008,110840.0,110830.0,1.64762585]
[1759096777188,0.01,110840.0,110830.0,1.64762585]
[1759096777791,0.013,110840.0,110830.0,1.64762585]
[1759096778488,0.008,110840.0,110830.0,1.64762585]
[1759096778875,0.008,110840.0,110830.0,1.71886323]
[1759096779188,0.005,110840.0,110830.0,1.71886323]
[1759096779386,0.01,110840.0,110830.0,1.71886323]
[1759096781985,0.008,110840.0,110830.0,1.71886323]
[1759096782382,0.005,110840.0,110830.0,1.71886323]
[1759096782579,0.008,110840.0,110830.0,1.71886323]
[1759096782781,0.003,110840.0,110830.0,1.71886323]
[1759096783287,0.003,110840.0,110830.0,2.45468666]
[1759096783591,0.005,110840.0,110830.0,2.11886323]
[1759096784686,0.002,110840.0,110830.0,2.11886323]
[1759096785277,0.002,110840.0,110830.0,2.45468666]
[1759096787486,0.35709343,110860.0,110850.0,0.1260164]
[1759096787792,0.3803501,110860.0,110850.0,1.27743983]
[1759096789090,0.3853501,110860.0,110850.0,1.27743983]
[1759096789588,0.3903501,110860.0,110850.0,1.27743983]
[1759096790790,0.03325667,110860.0,110850.0,1.63823983]
[1759096791690,0.008,110860.0,110850.0,1.63823983]
[1759096792286,0.008,110860.0,110850.0,1.97406326]
[1759096792592,0.008,110860.0,110850.0,2.37406326]
[1759096792894,0.73165343,110890.0,110880.0,0.111452]
[1759096793093,0.75489643,110890.0,110880.0,0.111452]
[1759096793484,0.74122643,110890.0,110880.0,0.46053543]
[1759096794191,0.74922643,110890.0,110880.0,0.46053543]
[1759096794782,0.74822643,110890.0,110880.0,0.46053543]
[1759096794984,0.75322643,110890.0,110880.0,0.46053543]
[1759096795380,0.75122643,110890.0,110880.0,0.46053543]
[1759096797084,0.054603,110890.0,110880.0,0.46053543]
[1759096797290,0.36718343,110890.0,110880.0,0.46053543]
[1759096797894,0.03136,110890.0,110880.0,0.46053543]
[1759096798301,0.03136,110890.0,110880.0,0.82133543]
[1759096798798,0.01,110890.0,110880.0,1.15715886]
[1759096798992,0.01,110890.0,110880.0,0.82133543]
[1759096799694,0.01,110890.0,110880.0,0.83024791]
[1759096800195,0.01,110890.0,110880.0,1.16607134]
[1759096800403,0.005,110890.0,110880.0,0.89442448]
[1759096800596,0.008,110890.0,110880.0,2.38155134]
[1759096800994,0.33582343,110900.0,110890.0,0.1246988]
[1759096801193,0.37049343,110910.0,110900.0,0.1114307]
[1759096801411,0.39365684,110910.0,110900.0,0.82131413]
[1759096802000,0.37049343,110910.0,110900.0,0.82131413]
[1759096802998,0.02136,110910.0,110900.0,0.82131413]
[1759096803196,0.02136,110920.0,110910.0,0.1188426]
[1759096803397,0.02136,110920.0,110910.0,1.63206603]
[1759096804496,0.02636,110920.0,110910.0,1.63206603]
[1759096804801,0.005,110920.0,110910.0,1.63206603]
[1759096805190,0.014,110920.0,110910.0,1.63206603]
[1759096805396,0.014,110920.0,110910.0,1.2962426]
[1759096805690,0.014,110920.0,110910.0,0.81546603]
[1759096805897,0.014,110920.0,110910.0,1.63278603]
[1759096806301,0.0129975,110920.0,110910.0,1.55128946]
[1759096806498,0.01258894,110920.0,110910.0,2.38163855]
[1759096806703,0.80002783,110950.0,110930.0,0.1183764]
[1759096807004,0.80002783,110950.0,110930.0,1.64554892]
[1759096807005,0.82313395,110950.0,110930.0,1.64554892]
[1759096807506,0.84449395,110950.0,110940.0,0.0213]
[1759096807693,0.84449395,110950.0,110940.0,0.03428909]
[1759096808003,0.84949395,110950.0,110940.0,0.85188909]
[1759096808410,0.51967052,110950.0,110940.0,1.18771252]
[1759096808601,0.51967052,110950.0,110940.0,0.85188909]
[1759096809603,0.03410612,110950.0,110940.0,1.65187072]
[1759096809903,0.011,110950.0,110940.0,1.99650935]
[1759096810103,0.011,110950.0,110940.0,2.39650935]
[1759096810306,0.005,110950.0,110940.0,2.05989261]
[1759096811404,0.005,110950.0,110940.0,2.05957261]
[1759096811705,0.005,110950.0,110940.0,1.24229261]
[1759096812002,0.005,110950.0,110940.0,2.05957261]
[1759096813608,0.005,110950.0,110940.0,2.04658352]
[1759096813805,0.1000781,110970.0,110960.0,0.122082]
[1759096814007,0.14442651,110970.0,110960.0,0.939242]
[1759096815205,0.15242651,110970.0,110960.0,0.939242]
[1759096817505,0.16612651,110970.0,110960.0,0.938922]
[1759096818905,0.16612651,110970.0,110960.0,0.122082]
[1759096819102,0.16612651,110970.0,110960.0,0.938922]
[1759096819603,0.16612651,110970.0,110960.0,0.938802]
[1759096821311,0.14481651,110970.0,110960.0,0.938802]
[1759096821608,0.018,110970.0,110960.0,1.63463212]
[1759096822203,0.018,110970.0,110960.0,2.03463212]
[1759096824612,0.018,110970.0,110960.0,1.21791212]
[1759096824822,0.018,110970.0,110960.0,2.03547212]
[1759096826113,0.018,110970.0,110960.0,2.03563212]
[1759096826412,0.018,110970.0,110960.0,2.03575212]
[1759096828815,0.018,110970.0,110960.0,2.03559212]
[1759096829317,0.04110217,110970.0,110960.0,2.03559212]
[1759096832012,0.018,110970.0,110960.0,2.03559212]
[1759096832720,0.03243455,110990.0,110980.0,0.1086458]
[1759096833023,0.05555414,110990.0,110980.0,1.2873258]
[1759096833612,0.06826414,110990.0,110980.0,1.2873258]
[1759096834013,0.07626414,110990.0,110980.0,1.2873258]
[1759096835414,0.07626414,110990.0,110980.0,1.29641969]
[1759096835721,0.07626414,110990.0,110980.0,1.2873258]
[1759096837509,0.07626414,110990.0,110980.0,1.62235592]
[1759096837718,0.07626414,110990.0,110980.0,1.2873258]
[1759096838525,0.10179638,110990.0,110980.0,1.2873258]
[1759096838716,0.12491597,110990.0,110980.0,1.2873258]
[1759096838911,0.12491597,110990.0,110980.0,1.62235592]
[1759096839718,0.14725597,110990.0,110980.0,0.80447592]
[1759096839919,0.14725597,110990.0,110980.0,1.62239592]
[1759096840220,0.13925597,110990.0,110980.0,1.2873658]
[1759096841224,0.06826414,110990.0,110980.0,1.2873658]
[1759096841719,0.05555414,110990.0,110980.0,1.62239592]
[1759096842717,0.02311959,110990.0,110980.0,2.02239592]
[1759096842917,0.09439638,111000.0,110990.0,0.1086445]
[1759096843220,0.055606,111000.0,110990.0,0.4694445]
[1759096843425,0.055606,111000.0,110990.0,0.80447462]
[1759096845124,0.1807124,111000.0,110990.0,0.80447462]
[1759096845418,0.077946,111000.0,110990.0,0.4694445]
[1759096845626,0.077946,111000.0,110990.0,1.62343462]
[1759096846019,0.090656,111000.0,110990.0,0.80447462]
[1759096846224,0.090656,111000.0,110990.0,1.62343462]
[1759096846423,0.090656,111000.0,110990.0,1.62335462]
[1759096846828,0.090656,111000.0,110990.0,1.2883245]
[1759096847021,0.090656,111000.0,110990.0,1.62335462]
[1759096848926,0.13930783,111000.0,110990.0,1.62335462]
[1759096849326,0.090656,111000.0,110990.0,1.62335462]
[1759096849628,0.090656,111000.0,110990.0,0.80447462]
[1759096849930,0.090656,111000.0,110990.0,1.62319462]
[1759096850416,0.13930783,111000.0,110990.0,1.62319462]
[1759096852731,0.22936423,111000.0,110990.0,1.62319462]
[1759096852928,0.1807124,111000.0,110990.0,1.62291462]
[1759096853232,0.14827785,111000.0,110990.0,1.62291462]
[1759096854932,0.1807124,111000.0,110990.0,1.62291462]
[1759096859128,0.14827785,111000.0,110990.0,1.62291462]
[1759096859830,0.14827785,111000.0,110990.0,1.26211462]
[1759096860035,0.1807124,111000.0,110990.0,1.26211462]
[1759096860734,0.05822145,111000.0,110990.0,1.26211462]
[1759096861029,0.05822145,111000.0,110990.0,1.17205012]
[1759096862634,0.05822145,111000.0,110990.0,1.26211462]
[1759096865631,0.14827785,111000.0,110990.0,1.26211462]
[1759096865825,0.14827785,111000.0,110990.0,0.9270845]
[1759096866030,0.14827785,111000.0,110990.0,1.26211462]
[1759096866824,0.14827785,111000.0,110990.0,0.9270845]
[1759096867031,0.14827785,111000.0,110990.0,1.26211462]
[1759096869035,0.14827785,111000.0,110990.0,0.9270845]
[1759096869236,0.14827785,111000.0,110990.0,1.26211462]
[1759096870333,0.14827785,111000.0,110990.0,1.26188284]
[1759096871238,0.14827785,111000.0,110990.0,1.26237669]
[1759096874235,0.41133299,111000.0,110990.0,1.26237669]
[1759096874438,0.14827785,111000.0,110990.0,1.26237669]
[1759096876935,0.14827785,111000.0,110990.0,1.27584341]
[1759096877839,0.14827785,111000.0,110990.0,1.26237669]
[1759096878536,0.02317145,111000.0,110990.0,1.26237669]
[1759096880240,0.02317145,111000.0,110990.0,1.88623183]
[1759096881436,0.02317145,111000.0,110990.0,1.62409669]
[1759096881641,0.02317145,111000.0,110990.0,1.88715183]
[1759096883739,0.02317145,111000.0,110990.0,1.06779183]
[1759096883932,0.03645145,111000.0,110990.0,1.62405669]
[1759096884434,0.02317145,111000.0,110990.0,1.62405669]
[1759096888433,0.02317145,111000.0,110990.0,1.88711183]
[1759096888638,0.02317145,111000.0,110990.0,0.80473669]
[1759096888838,0.02317145,111000.0,110990.0,1.62365669]
[1759096890446,0.11322465,111000.0,110990.0,1.62365669]
[1759096890647,0.12650465,111000.0,110990.0,1.62365669]
[1759096891045,0.11322465,111000.0,110990.0,1.62365669]
[1759096891848,0.12650465,111000.0,110990.0,1.62365669]
[1759096892353,1.03458493,111000.0,110990.0,0.01858]
[1759096892556,0.1245112,110990.0,110980.0,0.73250314]
[1759096892855,0.14768265,110990.0,110980.0,1.139968]
[1759096893053,0.14768265,110990.0,110980.0,1.40302314]
[1759096893251,0.05762145,110990.0,110980.0,1.40302314]
[1759096893654,0.05762145,110990.0,110980.0,0.99555828]
[1759096893961,0.05762145,110990.0,110980.0,1.55166314]
[1759096894153,0.05762145,110990.0,110980.0,1.55170314]
[1759096894658,0.05762145,110990.0,110980.0,1.81475828]
[1759096896155,0.05762145,110990.0,110980.0,0.99555828]
[1759096896360,0.05762145,110990.0,110980.0,1.81475828]
[1759096898457,0.05762145,110990.0,110980.0,1.288648]
[1759096898756,0.05762145,110990.0,110980.0,1.81475828]
[1759096905966,0.02317145,110990.0,110980.0,1.81475828]
[1759096906162,0.29750514,111000.0,110990.0,0.1086411]
[1759096906358,0.41039972,111000.0,110990.0,0.73249624]
[1759096909462,0.41039972,111000.0,110990.0,1.55165624]
[1759096910266,0.41039972,111000.0,110990.0,1.2886011]
[1759096910468,0.41039972,111000.0,110990.0,1.55165624]
[1759096912771,0.41039972,111000.0,110990.0,0.4694411]
[1759096912971,0.41039972,111000.0,110990.0,1.55161624]
[1759096914671,0.14734458,111000.0,110990.0,1.55161624]
[1759096914870,0.41039972,111000.0,110990.0,1.55161624]
[1759096917275,0.05729158,111000.0,110990.0,1.2885611]
[1759096917579,0.41039932,111000.0,110990.0,1.55161624]
[1759096919274,0.41039932,111000.0,110990.0,1.62460972]
[1759096919774,0.32034672,111000.0,110990.0,1.62460972]
[1759096920876,0.32034672,111000.0,110990.0,1.36155458]
[1759096921078,0.32034672,111000.0,110990.0,1.62460972]
[1759096922280,0.32034672,111000.0,110990.0,1.36155458]
[1759096922577,0.32034672,111000.0,110990.0,1.62460972]
[1759096922883,0.05729158,111000.0,110990.0,1.62460972]
[1759096923085,0.32034672,111000.0,110990.0,1.62460972]
[1759096924682,0.05729158,111000.0,110990.0,1.62460972]
[1759096924880,0.32034672,111000.0,110990.0,1.62460972]
[1759096925785,0.32034672,111000.0,110990.0,1.55161624]
[1759096926182,0.30570246,111000.0,110990.0,1.56569726]
[1759096926382,0.31961246,111000.0,110990.0,1.56569726]
[1759096926580,0.31961246,111000.0,110990.0,1.30264212]
[1759096926785,0.31961246,111000.0,110990.0,1.56569726]
[1759096927092,0.31961246,111000.0,110990.0,1.55161624]
[1759096929184,0.05655732,111000.0,110990.0,1.55161624]
[1759096929382,0.31961246,111000.0,110990.0,1.55161624]
[1759096931383,0.02284158,111000.0,110990.0,1.55161624]
[1759096932189,0.02284158,111000.0,110990.0,1.2885611]
[1759096932377,0.02284158,111000.0,110990.0,1.55160099]
[1759096937783,0.02284158,111000.0,110990.0,1.35963104]
[1759096938088,0.02284158,111000.0,110990.0,1.62267093]
[1759096941096,0.02284158,111000.0,110990.0,2.02267093]
[1759096941686,0.02284158,111000.0,110990.0,0.57971104]
[1759096941889,0.05682158,111000.0,110990.0,1.66275093]
[1759096942280,0.05682158,111000.0,110990.0,2.02355093]
[1759096943787,0.05682158,111000.0,110990.0,0.80355093]
[1759096943985,0.05682158,111000.0,110990.0,1.62363093]
[1759096947796,0.05682158,111000.0,110990.0,1.62363304]
[1759096951897,0.02284158,111000.0,110990.0,1.62363304]
[1759096952395,0.02284158,111000.0,110990.0,1.36059104]
[1759096952698,0.03554158,111000.0,110990.0,1.62363304]
[1759096953097,0.02284158,111000.0,110990.0,1.36059104]
[1759096953293,0.02284158,111000.0,110990.0,1.62363304]
[1759096953497,0.03554158,111000.0,110990.0,1.62363304]
[1759096954700,0.02284158,111000.0,110990.0,1.62363304]
[1759096955397,0.03554158,111000.0,110990.0,1.62363304]
[1759096956502,0.02284158,111000.0,110990.0,1.62363304]
[1759096957500,0.03554158,111000.0,110990.0,1.62363304]
[1759096960302,0.02284158,111000.0,110990.0,1.62363304]
[1759096961207,0.03554158,111000.0,110990.0,1.62363304]
[1759096961507,0.03554158,111000.0,110990.0,1.36059104]
[1759096961704,0.03554158,111000.0,110990.0,1.62363304]
[1759096962507,0.02284158,111000.0,110990.0,1.62363304]
[1759096963004,0.02284158,111000.0,110990.0,1.36059104]
[1759096963309,0.02284158,111000.0,110990.0,1.62363304]
[1759096964606,0.03554158,111000.0,110990.0,1.62363304]
[1759096964908,0.02284158,111000.0,110990.0,1.62363304]
[1759096966919,0.02284158,111000.0,110990.0,1.36059104]
[1759096967108,0.02284158,111000.0,110990.0,1.62363304]
[1759096967408,0.03554158,111000.0,110990.0,1.62363304]
[1759096967612,0.02284158,111000.0,110990.0,1.62363304]
[1759096968115,0.03574158,111000.0,110990.0,1.62363304]
[1759096969615,0.02284158,111000.0,110990.0,1.62363304]
[1759096969915,0.03574158,111000.0,110990.0,1.62363304]
[1759096973513,0.05760158,111000.0,110990.0,1.62435304]
[1759096973916,0.05760158,111000.0,110990.0,0.54051104]
[1759096974111,0.05760158,111000.0,110990.0,1.62419304]
[1759096974419,0.02284158,111000.0,110990.0,1.62419304]
[1759096975214,0.04470158,111000.0,110990.0,0.80355304]
[1759096975414,0.04470158,111000.0,110990.0,1.62443304]
[1759096975714,0.05760158,111000.0,110990.0,1.62443304]
[1759096975911,0.05760158,111000.0,110990.0,1.36139104]
[1759096976116,0.32064358,111000.0,110990.0,0.17971104]
[1759096976407,1.17150448,111000.0,110990.0,0.911629]
[1759096976610,1.17150448,111000.0,110990.0,0.934499]
[1759096979316,1.17150448,111000.0,110990.0,0.112939]
[1759096980116,0.90846248,111000.0,110990.0,0.112939]
[1759096980317,1.17150448,111000.0,110990.0,0.112939]
[1759096989824,1.08144358,111000.0,110990.0,0.112939]
[1759096992927,0.03553,110990.0,110980.0,0.1127027]
[1759096993126,0.68221358,110990.0,110980.0,0.1127027]
[1759096993426,1.26219109,110990.0,110980.0,0.1127027]
[1759096993726,0.70359309,110990.0,110980.0,0.1127027]
[1759096994430,0.44055109,110990.0,110980.0,0.1127027]
[1759096994729,0.34291039,110990.0,110980.0,0.1127027]
[1759096995429,0.79377939,110990.0,110980.0,0.1127027]
[1759096995628,0.53062009,110990.0,110980.0,0.1127027]
[1759096995830,0.79377939,110990.0,110980.0,0.1127027]
[1759096996135,0.70371039,110990.0,110980.0,0.1127027]
[1759096996525,0.34291039,110990.0,110980.0,0.1127027]
[1759096996929,0.68233088,110990.0,110980.0,0.1127027]
[1759096998038,0.77239988,110990.0,110980.0,0.1127027]
[1759096998233,0.68233088,110990.0,110980.0,0.1127027]
[1759096999634,0.77239988,110990.0,110980.0,0.1127027]
[1759097000537,0.77239988,110990.0,110980.0,0.1264435]
[1759097000733,1.59547988,110990.0,110980.0,0.1264435]
[1759097001740,1.59547988,110990.0,110980.0,0.1127027]
[1759097002434,0.1037351,110980.0,110970.0,0.0900847]
[1759097002639,1.03473528,110980.0,110970.0,0.01956354]